bitfinex/quotes_ETHUSD_20240731
["timestamp","ask_amount","ask_price","bid_price","bid_amount"]
[1722432720094,3.0,3337.8,3337.3,3.06405319]
[1722432720314,5.19362659,3337.8,3337.3,3.06405319]
[1722432720678,8.18962659,3337.8,3337.3,3.06405319]
[1722432721564,8.18962659,3337.8,3337.3,0.06769319]
[1722432721761,8.18962659,3337.8,3337.1,2.99661]
[1722432721762,2.19362659,3337.9,3337.4,2.39582666]
[1722432721962,2.19362659,3338.4,3337.5,2.70941961]
[1722432722163,2.19362659,3338.5,3338.0,2.3359]
[1722432722362,2.19362659,3338.5,3338.4,2.99544]
[1722432722609,1.59150702,3339.6,3338.5,2.99535]
[1722432722610,2.19362659,3338.6,3338.5,2.99535]
[1722432722777,2.83837902,3339.6,3338.5,2.99535]
[1722432722778,2.19362659,3339.0,3338.5,2.99535]
[1722432722980,2.19362659,3339.1,3338.6,0.06530493]
[1722432723222,2.19424808,3339.2,3338.8,2.99508]
[1722432723429,8.42473457,3339.6,3338.6,2.99525]
[1722432723430,2.99469,3339.3,3338.6,2.99525]
[1722432723580,2.9946,3339.4,3338.9,0.06530493]
[1722432723775,8.0270171,3339.6,3338.6,2.99525]
[1722432724009,2.99456,3339.4,3338.8,2.99506]
[1722432724611,2.99463,3339.3,3338.9,0.06530493]
[1722432724923,2.99463,3339.3,3338.6,2.99519]
[1722432725133,2.99473,3339.2,3339.0,0.06530493]
[1722432725342,2.99473,3339.2,3338.5,2.99533]
[1722432725696,2.99473,3339.2,3338.6,0.06530493]
[1722432726342,2.99463,3339.3,3338.6,0.06530493]
[1722432726343,2.99515,3338.8,3338.6,0.06530493]
[1722432726830,2.99515,3338.8,3338.7,0.06492284]
[1722432727210,2.99518,3338.7,3338.0,5.33169]
[1722432727451,2.99532,3338.6,3338.1,0.06492284]
[1722432727798,2.99532,3338.6,3337.9,2.99586]
[1722432727997,2.99532,3338.6,3338.0,3.06077924]
[1722432728397,5.9903,3338.8,3338.1,2.99571]
[1722432728598,2.99494,3339.0,3338.2,2.99557]
[1722432728806,5.73749274,3339.2,3338.3,3.06051924]
[1722432729009,3.0,3339.3,3338.4,2.99541]
[1722432729010,2.9949,3339.0,3338.4,2.99541]
[1722432729225,2.9949,3339.0,3338.5,0.06505828]
[1722432729526,5.99472,3339.3,3338.5,3.06035828]
[1722432729527,2.99478,3339.2,3338.5,3.06035828]
[1722432729739,5.99487,3339.1,3338.5,0.06505828]
[1722432730217,5.99481,3339.1,3338.5,0.06505828]
[1722432730397,5.99481,3339.1,3338.5,3.06037828]
[1722432730601,2.9945,3339.5,3338.6,2.99526]
[1722432730838,2.99464,3339.3,3338.8,2.99507]
[1722432731049,5.98936,3339.3,3338.7,0.06459276]
[1722432731243,5.98936,3339.3,3338.9,0.06455803]
[1722432731244,2.99464,3339.3,3338.9,0.06455803]
[1722432731544,2.99464,3339.3,3338.7,2.99514]
[1722432731704,2.99464,3339.3,3339.0,0.06455803]
[1722432732039,2.99473,3339.2,3339.1,0.06455803]
[1722432732541,2.83837902,3339.6,3338.3,2.3592]
[1722432732542,2.99463,3339.4,3338.7,2.99516]
[1722432732751,2.99469,3339.3,3339.1,0.06455803]
[1722432732902,2.99469,3339.3,3338.5,2.99527]
[1722432732903,2.99478,3339.2,3338.5,2.99527]
[1722432733533,2.99478,3339.2,3338.6,2.99525]
[1722432733857,2.99482,3339.1,3338.6,2.99525]
[1722432734493,2.99482,3339.1,3338.7,0.06455803]
[1722432735246,2.99508,3338.8,3338.7,0.06455803]
[1722432735846,3.54448,3339.5,3338.7,0.06445386]
[1722432736046,2.99508,3338.9,3338.7,0.06445386]
[1722432736243,2.99508,3338.9,3338.1,2.99563]
[1722432736446,2.99508,3338.9,3338.8,0.06445386]
[1722432736644,2.99508,3338.9,3338.2,5.99117]
[1722432736971,2.83837902,3339.6,3339.2,2.99471]
[1722432736972,0.39067902,3339.6,3339.2,2.99471]
[1722432737137,0.39067902,3339.6,3339.3,5.46569589]
[1722432737461,0.39067902,3339.6,3339.4,0.06449553]
[1722432737816,3.38505902,3339.6,3339.4,0.06449553]
[1722432738012,2.99446,3339.5,3338.9,2.3337]
[1722432738363,3.38507902,3339.6,3339.0,0.06438095]
[1722432738513,2.99464,3339.3,3339.0,0.06438095]
[1722432738712,2.99464,3339.3,3338.5,5.37734]
[1722432738713,2.99479,3339.2,3338.5,2.382]
[1722432739026,2.99472,3339.2,3338.2,2.99562]
[1722432739252,2.99483,3339.1,3338.3,3.05966739]
[1722432739561,2.2804,3339.5,3338.3,0.06420739]
[1722432739763,2.8304,3339.5,3338.3,0.06420739]
[1722432739909,2.99528,3338.6,3338.0,2.3068]
[1722432740104,2.99528,3338.6,3338.4,0.06431846]
[1722432740310,2.99549,3338.4,3337.6,5.42895]
[1722432740709,2.99549,3338.4,3337.7,2.99605]
[1722432741366,2.99527,3338.6,3337.8,2.99597]
[1722432741716,2.99536,3338.5,3337.8,2.99597]
[1722432741913,2.99545,3338.4,3337.6,5.42892]
[1722432742867,2.99556,3338.3,3337.6,5.42892]
[1722432743028,2.99535,3338.5,3337.6,2.4328]
[1722432743365,2.99548,3338.4,3337.6,5.42895]
[1722432743724,2.99564,3338.2,3337.6,2.4328]
[1722432744174,2.99564,3338.2,3337.1,35.0]
[1722432744175,2.9959,3337.9,3337.2,2.99649]
[1722432744320,2.9959,3337.9,3336.6,5.641]
[1722432744321,2.99618,3337.6,3336.6,2.99698]
[1722432744516,2.9965,3337.3,3336.6,2.99698]
[1722432746163,2.99662,3337.1,3336.4,2.99724]
[1722432746343,2.9965,3337.3,3336.6,2.99705]
[1722432746872,2.99652,3337.2,3336.6,2.99705]
[1722432747563,2.99662,3337.1,3336.4,2.99724]
[1722432748061,2.99662,3337.1,3336.5,2.99714]
[1722432748415,2.99643,3337.3,3336.6,2.997]
[1722432748613,2.99643,3337.3,3336.4,2.99724]
[1722432748864,2.99643,3337.3,3336.7,2.99697]
[1722432749421,2.99626,3337.5,3336.8,3.05969391]
[1722432749637,2.99626,3337.5,3336.9,2.99678]
[1722432749849,2.99635,3337.4,3336.7,2.9969]
[1722432750059,2.99635,3337.4,3337.0,0.06281391]
[1722432750260,2.99635,3337.4,3336.8,2.99687]
[1722432750561,2.99635,3337.4,3336.5,2.99711]
[1722432750562,2.99644,3337.3,3337.1,0.06281391]
[1722432750721,2.99644,3337.3,3336.5,2.99711]
[1722432750926,2.99626,3337.5,3337.2,0.06281391]
[1722432751271,2.99626,3337.5,3337.3,0.06281391]
[1722432751421,2.99634,3337.4,3337.3,0.06281391]
[1722432751616,3.0,3337.8,3336.2,37.404]
[1722432751617,5.1858331,3337.6,3336.2,37.404]
[1722432751830,3.0,3337.5,3336.9,2.99673]
[1722432752036,2.1896731,3337.6,3337.0,0.06066788]
[1722432752252,2.1896731,3337.5,3337.0,0.06066788]
[1722432752447,5.1855331,3338.0,3337.1,2.4627]
[1722432752649,2.1896731,3338.4,3337.2,2.99646]
[1722432752918,2.99548,3338.4,3337.7,2.99601]
[1722432753147,2.99548,3338.4,3337.3,0.05991524]
[1722432753148,2.99548,3338.4,3337.8,2.99598]
[1722432753352,5.99062,3338.6,3337.9,2.99588]
[1722432753570,2.3042,3338.9,3337.8,3.05738791]
[1722432753866,2.99543,3338.5,3337.8,2.99596]
[1722432754017,2.99543,3338.5,3337.9,0.06113336]
[1722432754218,2.99543,3338.5,3337.9,3.05697336]
[1722432754420,2.99529,3338.6,3338.0,2.99573]
[1722432754653,2.99517,3338.7,3337.9,2.58084698]
[1722432754858,2.995,3338.9,3338.3,2.99553]
[1722432755019,2.99491,3339.0,3338.4,0.05990266]
[1722432755232,3.01010902,3339.6,3338.5,0.06098397]
[1722432755478,3.01009902,3339.6,3338.8,2.99501]
[1722432755623,3.01009902,3339.6,3339.0,2.99489]
[1722432755847,0.01567902,3339.6,3339.2,2.99471]
[1722432756049,2.99461,3339.4,3338.9,2.376]
[1722432756256,3.01006902,3339.6,3338.5,2.99529]
[1722432756573,2.99451,3339.5,3338.7,2.99517]
[1722432756946,2.99459,3339.4,3338.7,2.99509]
[1722432757149,2.99459,3339.4,3338.8,2.99508]
[1722432757449,3.01005902,3339.6,3338.9,2.99498]
[1722432757675,2.9947,3339.3,3338.7,2.99517]
[1722432757845,0.01567902,3339.6,3338.7,2.99517]
[1722432758045,3.01005902,3339.6,3338.5,2.99529]
[1722432758283,2.99455,3339.4,3338.5,2.99529]
[1722432758484,2.99449,3339.5,3338.7,2.99508]
[1722432758699,2.99449,3339.5,3338.8,2.995]
[1722432758865,2.99449,3339.5,3338.9,2.99497]
[1722432759584,0.01567902,3339.6,3339.0,3.05479092]
[1722432759805,3.01004902,3339.6,3339.0,3.05479092]
[1722432760008,2.99448,3339.5,3339.0,0.05989092]
[1722432760146,2.99446,3339.5,3338.7,37.99511]
[1722432760344,2.99455,3339.4,3338.8,2.99508]
[1722432760651,2.9947,3339.3,3338.7,35.0]
[1722432760881,2.99447,3339.5,3338.7,35.0]
[1722432760882,2.99472,3339.2,3338.7,35.0]
[1722432761042,2.99447,3339.5,3338.7,35.0]
[1722432761289,2.99473,3339.2,3338.4,2.376]
[1722432761459,2.99473,3339.2,3338.5,2.99535]
[1722432761460,2.99479,3339.2,3338.5,2.99535]
[1722432762085,2.99479,3339.2,3338.4,2.376]
[1722432762086,2.99479,3339.2,3338.6,2.99525]
[1722432762248,2.99458,3339.4,3338.7,2.99516]
[1722432762451,2.99458,3339.4,3338.8,3.05495544]
[1722432763049,2.99464,3339.3,3338.8,0.05989544]
[1722432763250,3.01006902,3339.6,3338.9,2.99494]
[1722432763691,2.99446,3339.5,3338.7,2.99509]
[1722432763888,0.01567902,3339.6,3339.0,0.05973358]
[1722432764185,0.01567902,3339.6,3339.1,0.05973358]
[1722432764551,0.01567902,3339.6,3339.1,3.05453358]
[1722432764891,0.01567902,3339.6,3339.1,0.05973358]
[1722432765049,0.01567902,3339.6,3339.1,3.05454358]
[1722432765247,0.01567902,3339.6,3339.1,0.11962329]
[1722432765447,0.01567902,3339.6,3339.1,3.05454358]
[1722432765706,0.01567902,3339.6,3339.2,2.99472]
[1722432765858,0.01567902,3339.6,3339.3,2.99462]
[1722432766186,0.01567902,3339.6,3339.4,2.99448]
[1722432766386,0.01567902,3339.6,3339.4,3.05421358]
[1722432766777,0.01567902,3339.6,3339.4,0.05973358]
[1722432766975,0.01567902,3339.6,3339.2,5.34219]
[1722432767294,0.01567902,3339.6,3339.3,0.05973358]
[1722432767887,0.01567902,3339.6,3339.4,0.05973358]
[1722432768089,0.01567902,3339.6,3339.4,0.11961639]
[1722432768462,0.01567902,3339.6,3339.4,3.11414639]
[1722432768662,0.01567902,3339.6,3339.4,0.05973358]
[1722432768978,0.01567902,3339.6,3339.0,2.99487]
[1722432769182,0.01567902,3339.6,3339.1,3.05454358]
[1722432769700,3.01011902,3339.6,3339.1,0.05973358]
[1722432769855,3.04405,3340.0,3339.1,0.05973358]
[1722432770051,2.99421,3339.8,3338.7,2.2743]
[1722432770295,2.99421,3339.8,3339.1,2.99474]
[1722432770467,2.99437,3339.6,3338.9,2.99494]
[1722432770651,2.99437,3339.6,3339.0,2.99485]
[1722432770874,2.99421,3339.8,3339.1,3.05454358]
[1722432771303,2.99421,3339.8,3339.2,2.99471]
[1722432771848,2.99421,3339.8,3339.3,0.05973358]
[1722432772086,2.99421,3339.8,3339.2,2.99471]
[1722432772289,2.99421,3339.8,3339.4,0.05973358]
[1722432772467,0.05,3340.0,3339.3,2.9946]
[1722432772674,0.05,3340.0,3339.5,3.05417358]
[1722432772920,0.05,3340.0,3339.5,2.99444]
[1722432773056,0.05,3340.0,3339.5,2.99439]
[1722432773257,0.05,3340.0,3339.7,2.99422]
[1722432773472,0.05,3340.0,3339.8,0.05973358]
[1722432773903,0.05,3340.0,3339.7,2.99422]
[1722432774387,0.05,3340.0,3339.8,0.05961905]
[1722432774576,0.05,3340.0,3339.8,0.05987824]
[1722432774772,0.05,3340.0,3339.9,0.05961905]
[1722432775690,0.05,3340.0,3339.5,5.46058]
[1722432775897,0.05,3340.0,3339.9,0.05961905]
[1722432776127,0.05,3340.0,3339.6,6.04852776]
[1722432776328,0.05,3340.0,3339.9,0.05961905]
[1722432776492,0.05,3340.0,3339.8,2.99417]
[1722432776684,0.05,3340.0,3339.9,0.05961905]
[1722432777917,0.05,3340.0,3339.9,3.05371905]
[1722432778127,0.05,3340.0,3339.9,5.31941905]
[1722432778334,0.05,3340.0,3339.9,8.37339261]
[1722432779335,0.05,3340.0,3339.9,5.37929261]
[1722432780182,0.05,3340.0,3339.9,0.11949261]
[1722432780512,0.05,3340.0,3339.9,0.05961905]
[1722432780710,0.05,3340.0,3339.9,3.05371905]
[1722432780921,0.05,3340.0,3339.9,3.11359179]
[1722432781127,0.05,3340.0,3339.9,0.05961905]
[1722432781323,0.05,3340.0,3339.9,3.05371905]
[1722432781637,0.05,3340.0,3339.9,3.05146283]
[1722432782299,0.05,3340.0,3339.9,3.11133517]
[1722432783039,0.05,3340.0,3339.9,0.05736283]
[1722432783723,0.05,3340.0,3339.5,2.99438]
[1722432784036,0.05,3340.0,3339.6,2.99435]
[1722432784251,0.05,3340.0,3339.7,0.05736283]
[1722432784539,0.05,3340.0,3339.9,2.9941]
[1722432784843,0.05,3340.0,3339.9,3.05128586]
[1722432785148,0.05,3340.0,3339.9,3.11115476]
[1722432785500,0.05,3340.0,3339.9,6.10525476]
[1722432785726,0.05,3340.0,3339.9,8.52975476]
[1722432786366,0.05,3340.0,3339.9,9.01988586]
[1722432786539,0.05,3340.0,3339.9,12.01398586]
[1722432786745,0.05,3340.0,3339.9,9.01988586]
[1722432786975,0.05,3340.0,3339.9,12.01398586]
[1722432787293,0.05,3340.0,3339.9,15.01398586]
[1722432787427,0.13517652,3340.1,3339.9,6.03168586]
[1722432787632,0.46803862,3340.8,3340.7,8.40346]
[1722432787980,0.46803862,3340.8,3340.7,8.10914647]
[1722432788129,0.46803862,3340.8,3340.7,5.46514647]
[1722432788330,0.46803862,3340.8,3340.7,2.47176647]
[1722432788591,0.46803862,3340.8,3340.7,0.05506647]
[1722432788932,0.46803862,3340.8,3340.3,2.3742]
[1722432789132,0.46803862,3340.8,3340.7,0.05506647]
[1722432789429,0.46803862,3340.8,3340.7,5.36381468]
[1722432789833,0.46803862,3340.8,3340.7,8.90719468]
[1722432790467,0.46803862,3340.8,3340.7,11.90057468]
[1722432795838,0.46803862,3340.8,3340.7,14.90057468]
[1722432797638,0.46803862,3340.8,3340.7,17.89395468]
[1722432797872,0.46803862,3340.8,3340.7,14.90057468]
[1722432800481,0.46803862,3340.8,3340.7,9.04169468]
[1722432800676,0.46803862,3340.8,3340.7,6.04169468]
[1722432800978,0.46803862,3340.8,3340.7,3.04831468]
[1722432801189,0.46803862,3340.8,3340.7,0.05493468]
[1722432801676,0.46803862,3340.8,3340.7,3.04831468]
[1722432802052,0.46803862,3340.8,3340.7,0.05493468]
[1722432802879,0.46803862,3340.8,3340.7,8.42379468]
[1722432803185,0.46803862,3340.8,3340.7,11.96717468]
[1722432803675,0.46803862,3340.8,3340.7,14.96717468]
[1722432805537,10.0409,3342.7,3340.8,2.4904]
[1722432805785,2.6309,3342.7,3342.2,2.99198]
[1722432806097,2.6309,3342.7,3342.3,0.05983208]
[1722432806251,0.375,3342.7,3342.6,5.98336]
[1722432806436,0.375,3342.7,3342.6,2.99168]
[1722432806645,0.375,3342.7,3342.6,0.05055709]
[1722432806988,0.375,3342.7,3342.4,0.05982537]
[1722432807143,0.375,3342.7,3342.6,0.04887186]
[1722432807693,0.375,3342.7,3342.6,3.04055186]
[1722432807841,0.375,3342.7,3342.6,0.04887186]
[1722432808043,0.375,3342.7,3342.3,2.99191]
[1722432808244,0.375,3342.7,3342.4,0.04887186]
[1722432808659,0.375,3342.7,3342.4,3.04072186]
[1722432808874,0.375,3342.7,3342.5,2.99171]
[1722432809083,0.375,3342.7,3342.5,2.99168]
[1722432809249,0.375,3342.7,3342.6,3.10037718]
[1722432809452,0.375,3342.7,3342.6,3.04055186]
[1722432809697,0.375,3342.7,3342.6,6.03223186]
[1722432809889,0.375,3342.7,3342.6,8.67623186]
[1722432810254,0.375,3342.7,3342.6,3.04055186]
[1722432810455,0.375,3342.7,3342.6,6.03223186]
[1722432810975,0.375,3342.7,3342.6,0.04887186]
[1722432811181,2.7804,3342.7,3342.6,0.04887186]
[1722432811383,2.7804,3342.7,3342.3,2.99193]
[1722432811600,2.7804,3342.7,3342.6,0.04610768]
[1722432811775,2.7804,3342.7,3342.3,2.99193]
[1722432812105,2.7804,3342.7,3342.3,2.99194]
[1722432812309,2.7804,3342.7,3342.4,3.03790768]
[1722432812818,2.7804,3342.7,3342.6,2.99168]
[1722432813058,0.375,3342.7,3342.4,0.04610768]
[1722432813333,5.42253,3342.6,3341.4,10.27268]
[1722432813471,5.42253,3342.6,3341.5,2.99264]
[1722432813675,2.99227,3342.0,3341.6,0.0429417]
[1722432813903,2.99219,3342.1,3341.4,2.99275]
[1722432814216,7.785,3342.7,3341.5,0.04140477]
[1722432814217,2.99237,3341.9,3341.5,0.04140477]
[1722432814573,2.4866,3342.0,3339.2,2.4545]
[1722432814574,2.99262,3341.6,3339.2,2.4545]
[1722432814793,5.38691,3341.8,3339.9,2.644]
[1722432814991,2.3945,3341.8,3340.3,2.644]
[1722432815177,2.99258,3341.6,3340.9,2.99313]
[1722432815595,2.99258,3341.6,3341.0,2.99311]
[1722432815791,2.99258,3341.6,3341.0,3.03451477]
[1722432815994,5.38697,3341.8,3341.2,2.99293]
[1722432816211,2.99251,3341.7,3341.2,2.99293]
[1722432816399,2.3945,3341.8,3341.1,3.05281284]
[1722432816609,5.3869,3341.8,3341.3,0.04140477]
[1722432816926,5.3869,3341.8,3341.2,2.99293]
[1722432817262,2.99189,3342.4,3341.5,2.99261]
[1722432817263,2.99205,3342.2,3341.5,2.99261]
[1722432817375,5.99195,3342.3,3341.6,0.05984438]
[1722432817575,5.28697,3342.4,3341.8,2.99234]
[1722432817876,2.2951,3342.4,3341.9,2.9923]
[1722432818082,2.2951,3342.4,3342.0,0.04140477]
[1722432818283,2.2951,3342.4,3342.0,3.03354477]
[1722432818484,3.36664,3342.7,3342.0,3.03354477]
[1722432818713,0.375,3342.7,3342.3,2.99193]
[1722432818925,0.375,3342.7,3342.4,0.05983063]
[1722432819415,0.375,3342.7,3342.6,2.99168]
[1722432820017,0.375,3342.7,3342.6,3.03308477]
[1722432820429,0.375,3342.7,3342.6,0.04140477]
[1722432820574,0.375,3342.7,3342.6,6.02476477]
[1722432820777,0.375,3342.7,3342.6,5.98336]
[1722432821041,0.375,3342.7,3342.6,9.01644477]
[1722432821391,0.375,3342.7,3342.6,12.00812477]
[1722432821589,0.375,3342.7,3342.6,15.55812477]
[1722432822784,0.1470585,3344.4,3344.1,2.99029]
[1722432822973,0.1470585,3344.4,3344.0,0.05980061]
[1722432823304,0.1470585,3344.4,3343.7,2.99067]
[1722432823305,0.1470585,3344.4,3344.3,2.99016]
[1722432823475,0.1470585,3344.4,3344.3,3.03171671]
[1722432823677,0.1470585,3344.4,3344.3,6.08166914]
[1722432823976,0.1470585,3344.4,3344.3,6.02187671]
[1722432824172,0.0970585,3344.4,3344.3,6.02187671]
[1722432825431,0.0970585,3344.4,3344.3,9.62181887]
[1722432825724,0.0970585,3344.4,3344.3,6.63165887]
[1722432825878,0.01008042,3345.0,3344.9,8.96886]
[1722432826089,0.01008042,3345.0,3344.8,2.98969]
[1722432826318,0.01008042,3345.0,3344.3,3.55]
[1722432826517,0.01008042,3345.0,3344.6,2.98988]
[1722432826731,0.01008042,3345.0,3344.7,0.04155671]
[1722432827029,0.01008042,3345.0,3344.1,2.99026]
[1722432827030,2.98971,3344.8,3344.1,2.99026]
[1722432827183,0.01008042,3345.0,3344.8,0.04155671]
[1722432827376,0.01008042,3345.0,3344.4,2.99005]
[1722432827629,0.01008042,3345.0,3344.9,0.04077696]
[1722432827791,2.98981,3344.7,3344.0,2.99041]
[1722432827994,2.99967042,3345.0,3344.0,2.99041]
[1722432828191,0.01008042,3345.0,3344.0,2.99035]
[1722432828398,0.01008042,3345.0,3344.4,2.99001]
[1722432828607,0.01008042,3345.0,3344.2,2.99024]
[1722432828807,0.01008042,3345.0,3343.7,38.3004]
[1722432828808,0.01008042,3345.0,3344.3,2.99008]
[1722432829119,0.01008042,3345.0,3344.4,3.04985347]
[1722432829327,0.01008042,3345.0,3343.7,3.3004]
[1722432829328,0.01008042,3345.0,3344.7,2.9898]
[1722432829506,0.01008042,3345.0,3344.5,2.98996]
[1722432829725,0.01008042,3345.0,3343.7,40.99068]
[1722432829909,0.01008042,3345.0,3344.4,2.99007]
[1722432830281,0.01008042,3345.0,3344.7,2.98973]
[1722432830485,0.01008042,3345.0,3344.5,2.98996]
[1722432831234,0.01008042,3345.0,3344.0,2.99035]
[1722432831437,0.01008042,3345.0,3344.4,2.99001]
[1722432831602,2.93966,3344.9,3344.2,2.99018]
[1722432831793,2.93966,3344.9,3344.3,2.99014]
[1722432831989,0.01008042,3345.0,3344.5,2.98997]
[1722432832308,0.01008042,3345.0,3344.4,2.99006]
[1722432832842,0.01008042,3345.0,3344.3,2.99013]
[1722432832990,0.01008042,3345.0,3344.2,2.99022]
[1722432832991,0.01008042,3345.0,3344.4,2.99004]
[1722432833186,2.99962042,3345.0,3344.2,2.99016]
[1722432833625,2.99962042,3345.0,3344.3,2.99015]
[1722432833807,2.98963,3344.9,3344.3,2.99015]
[1722432835049,0.01008042,3345.0,3344.4,2.99005]
[1722432835215,0.01008042,3345.0,3344.6,2.98988]
[1722432835419,0.01008042,3345.0,3344.7,0.05978834]
[1722432835634,0.01008042,3345.0,3344.7,0.0999233]
[1722432835837,0.01008042,3345.0,3344.8,3.04949835]
[1722432836017,0.01008042,3345.0,3344.9,2.98962]
[1722432836215,0.01008042,3345.0,3344.9,5.97924]
[1722432836530,0.01008042,3345.0,3344.9,6.01935427]
[1722432837330,0.01008042,3345.0,3344.9,6.07913401]
[1722432837534,0.01008042,3345.0,3344.9,6.62913401]
[1722432837731,0.01008042,3345.0,3344.9,38.02973427]
[1722432838108,0.01008042,3345.0,3344.9,41.01935427]
[1722432838604,0.01008042,3345.0,3344.9,44.55897427]
[1722432838808,0.01008042,3345.0,3344.9,12.55897427]
[1722432839352,0.01008042,3345.0,3344.9,47.55897427]
[1722432840253,0.01008042,3345.0,3344.9,44.56935427]
[1722432840706,0.01008042,3345.0,3344.9,6.02973427]
[1722432840904,0.01008042,3345.0,3344.9,0.04011427]
[1722432841148,0.01008042,3345.0,3344.6,2.98985]
[1722432841317,0.01008042,3345.0,3344.9,6.01690278]
[1722432841516,0.01008042,3345.0,3344.9,3.02728278]
[1722432842153,0.01008042,3345.0,3344.9,0.03766278]
[1722432842474,0.01008042,3345.0,3344.0,2.99041]
[1722432842475,2.9898,3344.7,3344.0,2.99041]
[1722432842833,2.9898,3344.7,3343.8,10.27058]
[1722432842834,0.01008042,3345.0,3344.3,2.99016]
[1722432843027,2.98972,3344.8,3344.0,2.9904]
[1722432843558,2.99963042,3345.0,3344.2,2.99018]
[1722432843760,2.98983,3344.7,3344.1,2.99028]
[1722432843964,2.98963,3344.9,3344.2,2.99024]
[1722432844163,2.98972,3344.8,3344.2,2.99024]
[1722432844364,2.98972,3344.8,3343.9,2.99048]
[1722432844365,0.01008042,3345.0,3344.6,2.98988]
[1722432844679,0.01008042,3345.0,3344.4,2.98999]
[1722432844830,2.99970042,3345.0,3344.4,2.98999]
[1722432845362,2.99970042,3345.0,3344.5,2.98997]
[1722432845543,0.01008042,3345.0,3344.6,0.05979013]
[1722432845751,0.01008042,3345.0,3344.6,3.04968013]
[1722432846077,0.01008042,3345.0,3344.8,2.98965]
[1722432846379,0.01008042,3345.0,3344.9,0.05978481]
[1722432846881,0.01008042,3345.0,3344.9,3.04940481]
[1722432847234,0.01008042,3345.0,3344.1,3.0]
[1722432847548,2.98963,3344.9,3344.0,3.0]
[1722432847876,2.98972,3344.8,3344.1,0.55]
[1722432848080,2.98972,3344.8,3344.0,2.99042]
[1722432848081,2.98989,3344.6,3344.0,2.99042]
[1722432848232,2.98972,3344.8,3344.0,2.99034]
[1722432848436,2.3906,3344.9,3344.2,2.99019]
[1722432848692,2.3906,3344.9,3344.5,2.98996]
[1722432848882,2.3906,3344.9,3344.3,2.9901]
[1722432849172,2.3906,3344.9,3344.5,2.98998]
[1722432849551,0.01008042,3345.0,3344.7,2.9898]
[1722432849745,0.01008042,3345.0,3344.5,2.98998]
[1722432850004,0.01008042,3345.0,3344.1,2.99032]
[1722432850194,0.01008042,3345.0,3344.4,2.99005]
[1722432850195,2.99962042,3345.0,3344.4,2.99005]
[1722432850494,2.99962042,3345.0,3344.5,5.97987]
[1722432850495,0.01008042,3345.0,3344.5,5.97987]
[1722432850698,0.01008042,3345.0,3344.2,2.99017]
[1722432850850,2.98966,3344.9,3344.0,2.99037]
[1722432851207,2.98981,3344.7,3343.9,3.0]
[1722432851559,2.98975,3344.8,3344.2,2.99024]
[1722432851758,2.9898,3344.7,3344.1,2.99032]
[1722432851953,2.9897,3344.9,3344.2,0.05979668]
[1722432852204,2.98973,3344.8,3344.3,2.99015]
[1722432852497,2.3157,3344.9,3344.1,0.05979368]
[1722432852681,5.30536,3344.9,3344.1,2.99029]
[1722432852881,2.9898,3344.7,3344.1,2.99029]
[1722432853306,2.9899,3344.6,3344.0,2.9904]
[1722432853507,2.3157,3344.9,3344.2,2.99017]
[1722432853671,5.30532,3344.9,3344.3,0.05979311]
[1722432853999,5.30532,3344.9,3344.4,2.99001]
[1722432854000,5.30533,3344.9,3344.4,2.99001]
[1722432854183,2.3157,3344.9,3344.4,2.99001]
[1722432854356,2.3157,3344.9,3344.5,0.0358674]
[1722432854557,5.30533,3344.9,3344.5,0.0358674]
[1722432854759,5.30533,3344.9,3344.3,2.99011]
[1722432854985,2.3157,3344.9,3344.4,3.0259274]
[1722432855504,2.3157,3344.9,3344.4,0.0358674]
[1722432855919,0.01008042,3345.0,3344.7,2.98976]
[1722432856106,0.01008042,3345.0,3344.8,0.05978779]
[1722432856303,0.01008042,3345.0,3344.8,0.0358674]
[1722432856831,0.01008042,3345.0,3344.9,0.0358674]
[1722432857204,0.01008042,3345.0,3344.6,2.98983]
[1722432857407,0.01008042,3345.0,3344.9,0.0358674]
[1722432857618,0.01008042,3345.0,3344.4,2.99003]
[1722432857835,0.01008042,3345.0,3344.9,0.0358674]
[1722432858032,0.01008042,3345.0,3344.6,2.98983]
[1722432858202,0.01008042,3345.0,3344.9,0.0358674]
[1722432858406,0.01008042,3345.0,3344.4,2.99003]
[1722432858609,2.99969042,3345.0,3344.9,0.0358674]
[1722432858840,2.99969042,3345.0,3344.4,2.99003]
[1722432858992,2.99969042,3345.0,3344.9,0.0358674]
[1722432859788,2.99969042,3345.0,3344.4,2.99006]
[1722432860040,2.99969042,3345.0,3344.9,0.0358674]
[1722432860335,2.99969042,3345.0,3344.4,2.99006]
[1722432860549,5.98927042,3345.0,3344.2,2.99018]
[1722432860843,2.98995,3344.6,3344.3,0.0358674]
[1722432861137,2.98982,3344.7,3344.3,0.0358674]
[1722432861335,2.98982,3344.7,3344.1,2.99027]
[1722432861814,2.99005,3344.5,3344.2,0.0358674]
[1722432862017,2.99016,3344.3,3344.2,0.0358674]
[1722432862217,2.99016,3344.3,3343.6,2.99077]
[1722432862421,2.3418,3343.9,3343.0,2.99125]
[1722432862625,2.99079,3343.6,3343.0,2.99125]
[1722432862807,2.99079,3343.6,3342.8,2.99145]
[1722432863134,2.99079,3343.6,3342.7,10.27155]
[1722432863135,2.991,3343.4,3342.7,10.27155]
[1722432863339,2.99081,3343.6,3342.8,2.99145]
[1722432863507,2.99078,3343.6,3342.7,7.28]
[1722432863711,2.99126,3343.1,3342.2,2.992]
[1722432863910,7.41,3343.8,3342.1,7.5804]
[1722432864236,7.41,3343.8,3342.3,2.99193]
[1722432864237,2.9907,3343.7,3342.3,2.99193]
[1722432864404,10.40067,3343.8,3343.2,2.99106]
[1722432864605,2.99079,3343.6,3343.0,2.99125]
[1722432864919,2.99079,3343.6,3343.0,2.99124]
[1722432865121,2.99067,3343.8,3343.1,2.99118]
[1722432865338,2.99052,3343.9,3343.1,2.99118]
[1722432865635,2.99022,3344.3,3343.2,3.60980733]
[1722432865836,2.2555,3344.5,3343.2,3.60980733]
[1722432865837,2.99025,3344.2,3343.3,3.05081463]